[Event "*** SCC Grand Prix: Titled Tuesday Blitz"]
[Site "Chess.com"]
[Date "2020.08.11"]
[Round "2"]
[White "Casablanca"]
[Black "Jadeit90"]
[Result "1-0"]
[WhiteElo "2452"]
[BlackElo "2243"]
[TimeControl "180+1"]
[EndTime "10:17:28 PDT"]
[Termination "Casablanca won by checkmate"]

1. d4 {[%clk 0:03:00.9]} 1... Nf6 {[%clk 0:02:59.2]} 2. Bg5 {[%clk 0:03:01]}
2... c5 {[%clk 0:03:00.1]} 3. Nc3 {[%clk 0:03:00.6]} 3... cxd4 {[%clk
0:03:00.1]} 4. Qxd4 {[%clk 0:03:01.5]} 4... Nc6 {[%clk 0:03:00.7]} 5. Qh4 {[%clk
0:03:02]} 5... e6 {[%clk 0:03:00.7]} 6. O-O-O {[%clk 0:03:02.1]} 6... Be7 {[%clk
0:03:00.9]} 7. e4 {[%clk 0:03:02.4]} 7... O-O {[%clk 0:02:59.5]} 8. f4 {[%clk
0:02:54.3]} 8... h6 {[%clk 0:02:57.7]} 9. Nf3 {[%clk 0:02:54.8]} 9... Qa5 {[%clk
0:02:49.8]} 10. e5 {[%clk 0:02:53.7]} 10... hxg5 {[%clk 0:02:32.9]} 11. Nxg5
{[%clk 0:02:54.6]} 11... Rd8 {[%clk 0:02:33]} 12. exf6 {[%clk 0:02:17.5]} 12...
Bxf6 {[%clk 0:02:32]} 13. Bd3 {[%clk 0:01:59.7]} 13... d5 {[%clk 0:02:19.7]} 14.
Qh5 {[%clk 0:01:39.3]} 14... Qc7 {[%clk 0:02:08.6]} 15. g3 {[%clk 0:01:11.4]}
15... a6 {[%clk 0:02:03.5]} 16. Rhe1 {[%clk 0:01:10.9]} 16... b5 {[%clk
0:02:01.8]} 17. Qh7+ {[%clk 0:01:02.4]} 17... Kf8 {[%clk 0:02:01.6]} 18. Bf1
{[%clk 0:00:46.6]} 18... Bxg5 {[%clk 0:01:44.2]} 19. fxg5 {[%clk 0:00:47.5]}
19... Bb7 {[%clk 0:01:32.8]} 20. Nxd5 {[%clk 0:00:47.3]} 20... Rxd5 {[%clk
0:01:18.1]} 21. Rxd5 {[%clk 0:00:46.9]} 21... Rc8 {[%clk 0:01:17.3]} 22. Qh8+
{[%clk 0:00:37.3]} 22... Ke7 {[%clk 0:00:54.7]} 23. Qxg7 {[%clk 0:00:38.2]}
23... Nb4 {[%clk 0:00:43.3]} 24. Rd2 {[%clk 0:00:38.2]} 24... Nxc2 {[%clk
0:00:39.3]} 25. Rxe6+ {[%clk 0:00:37.9]} 25... Kxe6 {[%clk 0:00:34]} 26. Qf6#
{[%clk 0:00:37.7]} 1-0

[Event "*** SCC Grand Prix: Titled Tuesday Blitz"]
[Site "Chess.com"]
[Date "2020.08.11"]
[Round "2"]
[White "jacky72"]
[Black "The_Machine04"]
[Result "0-1"]
[WhiteElo "2623"]
[BlackElo "2252"]
[TimeControl "180+1"]
[EndTime "10:17:29 PDT"]
[Termination "The_Machine04 won by checkmate"]

1. d4 {[%clk 0:03:00.9]} 1... d6 {[%clk 0:03:00.1]} 2. c4 {[%clk 0:03:01.8]}
2... e5 {[%clk 0:02:59]} 3. Nf3 {[%clk 0:03:01.8]} 3... e4 {[%clk 0:02:57.9]} 4.
Ng5 {[%clk 0:03:02.3]} 4... f5 {[%clk 0:02:57.9]} 5. g3 {[%clk 0:03:02.3]} 5...
Be7 {[%clk 0:02:58.3]} 6. Nh3 {[%clk 0:03:02.4]} 6... Nf6 {[%clk 0:02:58.8]} 7.
Bg2 {[%clk 0:03:03.3]} 7... O-O {[%clk 0:02:55.2]} 8. O-O {[%clk 0:03:04.2]}
8... c6 {[%clk 0:02:55.2]} 9. b3 {[%clk 0:03:04.6]} 9... Na6 {[%clk 0:02:55.2]}
10. d5 {[%clk 0:03:04.1]} 10... Nc7 {[%clk 0:02:49.7]} 11. Nf4 {[%clk
0:03:03.2]} 11... cxd5 {[%clk 0:02:09.9]} 12. cxd5 {[%clk 0:03:02]} 12... g5
{[%clk 0:02:09.7]} 13. Ne6 {[%clk 0:02:59.9]} 13... Bxe6 {[%clk 0:01:52]} 14.
dxe6 {[%clk 0:03:00.8]} 14... Nxe6 {[%clk 0:01:52.9]} 15. Nc3 {[%clk 0:02:55.7]}
15... d5 {[%clk 0:01:42.6]} 16. Bb2 {[%clk 0:02:56.6]} 16... a6 {[%clk
0:01:36.1]} 17. e3 {[%clk 0:02:55.9]} 17... Nc5 {[%clk 0:01:31.4]} 18. Ba3
{[%clk 0:02:46.1]} 18... Nd3 {[%clk 0:01:25.4]} 19. Bxe7 {[%clk 0:02:45]} 19...
Qxe7 {[%clk 0:01:26.3]} 20. Ne2 {[%clk 0:02:38.2]} 20... Ng4 {[%clk 0:01:08.1]}
21. Nc1 {[%clk 0:02:34.3]} 21... Nge5 {[%clk 0:01:03.5]} 22. Nxd3 {[%clk
0:02:34.2]} 22... Nxd3 {[%clk 0:01:04.4]} 23. Qh5 {[%clk 0:02:32.6]} 23... g4
{[%clk 0:00:41.7]} 24. Rfd1 {[%clk 0:02:29.7]} 24... Rad8 {[%clk 0:00:38.8]} 25.
Bf1 {[%clk 0:02:28]} 25... Ne5 {[%clk 0:00:35.3]} 26. h3 {[%clk 0:02:27.9]}
26... Rd6 {[%clk 0:00:20.2]} 27. Be2 {[%clk 0:02:24.7]} 27... Kg7 {[%clk
0:00:11.7]} 28. Kg2 {[%clk 0:02:23.7]} 28... Rh6 {[%clk 0:00:11.2]} 29. hxg4
{[%clk 0:02:24.2]} 29... Rxh5 {[%clk 0:00:10.8]} 30. gxh5 {[%clk 0:02:25.1]}
30... h6 {[%clk 0:00:10.7]} 31. Rxd5 {[%clk 0:02:23.7]} 31... Rd8 {[%clk
0:00:11.3]} 32. Rad1 {[%clk 0:02:22.6]} 32... Rxd5 {[%clk 0:00:11.1]} 33. Rxd5
{[%clk 0:02:23.5]} 33... Qe6 {[%clk 0:00:10.8]} 34. Rd4 {[%clk 0:02:22.2]} 34...
Nc6 {[%clk 0:00:08.5]} 35. Bc4 {[%clk 0:02:20.9]} 35... Nxd4 {[%clk 0:00:06.8]}
36. Bxe6 {[%clk 0:02:20.8]} 36... Nxe6 {[%clk 0:00:07.7]} 37. g4 {[%clk
0:02:21.1]} 37... Kf6 {[%clk 0:00:06.6]} 38. Kg3 {[%clk 0:02:20]} 38... Kg5
{[%clk 0:00:06.4]} 39. gxf5 {[%clk 0:02:20.5]} 39... Kxf5 {[%clk 0:00:07.3]} 40.
f4 {[%clk 0:02:21.2]} 40... Ng7 {[%clk 0:00:05.6]} 41. Kh4 {[%clk 0:02:20.8]}
41... Ne6 {[%clk 0:00:05.5]} 42. Kg3 {[%clk 0:02:20.7]} 42... Nc7 {[%clk
0:00:05.6]} 43. Kg2 {[%clk 0:02:20]} 43... Nd5 {[%clk 0:00:06.2]} 44. Kf2 {[%clk
0:02:20.5]} 44... Nf6 {[%clk 0:00:06.8]} 45. b4 {[%clk 0:02:18.8]} 45... Nxh5
{[%clk 0:00:06.9]} 46. a4 {[%clk 0:02:19.5]} 46... Nf6 {[%clk 0:00:07.4]} 47.
Kg3 {[%clk 0:02:20.2]} 47... Nd5 {[%clk 0:00:06.6]} 48. Kf2 {[%clk 0:02:20.3]}
48... Nxb4 {[%clk 0:00:06.8]} 49. a5 {[%clk 0:02:19.9]} 49... Nc6 {[%clk
0:00:07]} 50. Ke2 {[%clk 0:02:20.2]} 50... Nxa5 {[%clk 0:00:07.2]} 51. Kf2
{[%clk 0:02:21.1]} 51... Nc4 {[%clk 0:00:07.4]} 52. Kg3 {[%clk 0:02:22]} 52...
a5 {[%clk 0:00:07.4]} 53. Kh4 {[%clk 0:02:22.9]} 53... a4 {[%clk 0:00:08]} 54.
Kh5 {[%clk 0:02:23.8]} 54... a3 {[%clk 0:00:08.9]} 55. Kxh6 {[%clk 0:02:24.7]}
55... a2 {[%clk 0:00:09.8]} 56. Kh7 {[%clk 0:02:25.6]} 56... a1=Q {[%clk
0:00:10.7]} 57. Kg8 {[%clk 0:02:25.6]} 57... Qf6 {[%clk 0:00:09.7]} 58. Kh7
{[%clk 0:02:26.5]} 58... Qg6+ {[%clk 0:00:09.7]} 59. Kh8 {[%clk 0:02:26.7]}
59... Qg4 {[%clk 0:00:10.2]} 60. Kh7 {[%clk 0:02:27.6]} 60... Kf6 {[%clk
0:00:10.5]} 61. Kh8 {[%clk 0:02:28.5]} 61... Qg7# {[%clk 0:00:10.3]} 0-1

[Event "*** SCC Grand Prix: Titled Tuesday Blitz"]
[Site "Chess.com"]
[Date "2020.08.11"]
[Round "2"]
[White "Meri-Arabidze"]
[Black "Iris77"]
[Result "1-0"]
[WhiteElo "2616"]
[BlackElo "2052"]
[TimeControl "180+1"]
[EndTime "10:17:31 PDT"]
[Termination "Meri-Arabidze won on time"]

1. d4 {[%clk 0:03:00.9]} 1... e6 {[%clk 0:02:56.9]} 2. c4 {[%clk 0:03:01.5]}
2... f5 {[%clk 0:02:51]} 3. Nf3 {[%clk 0:03:02.1]} 3... Nf6 {[%clk 0:02:48.9]}
4. Nc3 {[%clk 0:03:02.5]} 4... Be7 {[%clk 0:02:47.6]} 5. Bf4 {[%clk 0:03:01.6]}
5... O-O {[%clk 0:02:46.1]} 6. e3 {[%clk 0:03:01.8]} 6... b6 {[%clk 0:02:43.6]}
7. h3 {[%clk 0:03:01.3]} 7... Bb7 {[%clk 0:02:43.4]} 8. Bd3 {[%clk 0:02:59.9]}
8... Ne4 {[%clk 0:02:39.5]} 9. Qc2 {[%clk 0:02:57.3]} 9... Nxc3 {[%clk
0:02:29.6]} 10. bxc3 {[%clk 0:02:56.2]} 10... d6 {[%clk 0:02:19.4]} 11. O-O
{[%clk 0:02:51.2]} 11... Nd7 {[%clk 0:02:10.8]} 12. Nd2 {[%clk 0:02:45.3]} 12...
Qe8 {[%clk 0:02:09.6]} 13. f3 {[%clk 0:02:38.8]} 13... Qh5 {[%clk 0:01:55.7]}
14. Bh2 {[%clk 0:02:25.2]} 14... Rf6 {[%clk 0:01:39.1]} 15. e4 {[%clk
0:02:21.9]} 15... f4 {[%clk 0:01:20.6]} 16. Kh1 {[%clk 0:02:15.2]} 16... Raf8
{[%clk 0:01:17.1]} 17. a4 {[%clk 0:02:13.8]} 17... e5 {[%clk 0:01:13.6]} 18. a5
{[%clk 0:02:12.2]} 18... Rh6 {[%clk 0:01:07.8]} 19. axb6 {[%clk 0:02:10.8]}
19... axb6 {[%clk 0:01:05.4]} 20. Ra7 {[%clk 0:02:05.4]} 20... Rb8 {[%clk
0:01:00.5]} 21. Rfa1 {[%clk 0:02:01.9]} 21... c5 {[%clk 0:00:29.7]} 22. Qa4
{[%clk 0:01:58.1]} 22... Nf6 {[%clk 0:00:17.8]} 23. Rxb7 {[%clk 0:01:55.8]}
23... Re8 {[%clk 0:00:13]} 24. Bf1 {[%clk 0:01:44.8]} 24... Qg6 {[%clk 0:00:09]}
25. Qc6 {[%clk 0:01:42.6]} 25... Nh5 {[%clk 0:00:07.3]} 26. Raa7 {[%clk
0:01:35.9]} 26... Kf8 {[%clk 0:00:06.7]} 27. Qxb6 {[%clk 0:01:24.5]} 27... Ng3+
{[%clk 0:00:02.5]} 28. Bxg3 {[%clk 0:01:24.3]} 28... Qxg3 {[%clk 0:00:02.4]} 29.
Rxe7 {[%clk 0:01:21.3]} 1-0

[Event "*** SCC Grand Prix: Titled Tuesday Blitz"]
[Site "Chess.com"]
[Date "2020.08.11"]
[Round "2"]
[White "Nara_Kh"]
[Black "BocharovD"]
[Result "0-1"]
[WhiteElo "2311"]
[BlackElo "2686"]
[TimeControl "180+1"]
[EndTime "10:17:31 PDT"]
[Termination "BocharovD won on time"]

1. e4 {[%clk 0:03:00.9]} 1... c5 {[%clk 0:02:58.5]} 2. Nf3 {[%clk 0:03:00.6]}
2... d6 {[%clk 0:02:58.7]} 3. d4 {[%clk 0:02:59.7]} 3... cxd4 {[%clk 0:02:59.6]}
4. Nxd4 {[%clk 0:02:59.7]} 4... Nf6 {[%clk 0:03:00.1]} 5. Nc3 {[%clk 0:02:59.9]}
5... a6 {[%clk 0:03:00.7]} 6. h3 {[%clk 0:02:59.6]} 6... e5 {[%clk 0:02:58.2]}
7. Nde2 {[%clk 0:02:58.4]} 7... b5 {[%clk 0:02:56.2]} 8. Ng3 {[%clk 0:02:36.8]}
8... Nc6 {[%clk 0:02:54.7]} 9. Bg5 {[%clk 0:02:31.5]} 9... Be7 {[%clk
0:02:53.1]} 10. Bxf6 {[%clk 0:02:25.3]} 10... Bxf6 {[%clk 0:02:52.8]} 11. Nd5
{[%clk 0:02:25.6]} 11... O-O {[%clk 0:02:51.3]} 12. a4 {[%clk 0:02:23.7]} 12...
b4 {[%clk 0:02:50.7]} 13. Bc4 {[%clk 0:02:21.4]} 13... Bh4 {[%clk 0:02:32.7]}
14. Nh5 {[%clk 0:01:40.7]} 14... g6 {[%clk 0:02:20.7]} 15. g3 {[%clk 0:01:38.8]}
15... Be7 {[%clk 0:02:20]} 16. g4 {[%clk 0:01:24.9]} 16... gxh5 {[%clk
0:02:16.6]} 17. gxh5 {[%clk 0:01:25.1]} 17... Kh8 {[%clk 0:02:16.1]} 18. Qf3
{[%clk 0:01:08.6]} 18... Nd4 {[%clk 0:02:15.4]} 19. Qd3 {[%clk 0:01:08.7]} 19...
Bg5 {[%clk 0:02:11.9]} 20. f4 {[%clk 0:00:43.4]} 20... Bxf4 {[%clk 0:02:09]} 21.
Nxf4 {[%clk 0:00:41.8]} 21... Qh4+ {[%clk 0:02:07.5]} 22. Kd1 {[%clk 0:00:37.1]}
22... Qxf4 {[%clk 0:02:07.2]} 23. Rf1 {[%clk 0:00:37.4]} 23... Qg5 {[%clk
0:02:05.9]} 24. c3 {[%clk 0:00:31.4]} 24... bxc3 {[%clk 0:02:05.5]} 25. bxc3
{[%clk 0:00:31.6]} 25... Ne6 {[%clk 0:02:06]} 26. Rf5 {[%clk 0:00:17.4]} 26...
Qe7 {[%clk 0:01:59.5]} 27. Kc2 {[%clk 0:00:14.7]} 27... Nf4 {[%clk 0:01:58.7]}
28. Qf3 {[%clk 0:00:10.9]} 28... Bxf5 {[%clk 0:01:57]} 29. exf5 {[%clk
0:00:10.3]} 29... Qg5 {[%clk 0:01:54]} 30. Kb3 {[%clk 0:00:02.2]} 30... Rab8+
{[%clk 0:01:52.8]} 31. Ka3 {[%clk 0:00:02.6]} 31... d5 {[%clk 0:01:50.6]} 32.
Bxd5 {[%clk 0:00:02.5]} 32... Nxd5 {[%clk 0:01:47.2]} 33. Qxd5 {[%clk
0:00:02.2]} 33... Qe7+ {[%clk 0:01:47.7]} 34. Ka2 {[%clk 0:00:01.8]} 34... Rfd8
{[%clk 0:01:46.1]} 35. Qe4 {[%clk 0:00:02.1]} 35... Rd2+ {[%clk 0:01:44.4]} 0-1

[Event "*** SCC Grand Prix: Titled Tuesday Blitz"]
[Site "Chess.com"]
[Date "2020.08.11"]
[Round "2"]
[White "tan275"]
[Black "ShahMatKanal"]
[Result "0-1"]
[WhiteElo "2234"]
[BlackElo "2448"]
[TimeControl "180+1"]
[EndTime "10:17:33 PDT"]
[Termination "ShahMatKanal won by resignation"]

1. d4 {[%clk 0:03:00.9]} 1... d5 {[%clk 0:02:59.4]} 2. c4 {[%clk 0:03:00.8]}
2... e6 {[%clk 0:02:59.2]} 3. Nf3 {[%clk 0:02:59.3]} 3... Nf6 {[%clk 0:02:59.4]}
4. Nc3 {[%clk 0:02:57.2]} 4... Nbd7 {[%clk 0:02:59.6]} 5. g3 {[%clk 0:02:55]}
5... Be7 {[%clk 0:02:58.2]} 6. Bg2 {[%clk 0:02:54.7]} 6... O-O {[%clk
0:02:58.2]} 7. O-O {[%clk 0:02:53.2]} 7... c6 {[%clk 0:02:58.6]} 8. Nd2 {[%clk
0:02:52.5]} 8... a6 {[%clk 0:02:54.5]} 9. e4 {[%clk 0:02:51.6]} 9... dxe4 {[%clk
0:02:51.8]} 10. Ndxe4 {[%clk 0:02:51.6]} 10... Nxe4 {[%clk 0:02:52.7]} 11. Nxe4
{[%clk 0:02:51.3]} 11... Nf6 {[%clk 0:02:53.6]} 12. Nc3 {[%clk 0:02:42.1]} 12...
Qc7 {[%clk 0:02:48.2]} 13. Bf4 {[%clk 0:02:35.4]} 13... Bd6 {[%clk 0:02:48.1]}
14. Bg5 {[%clk 0:02:35.5]} 14... Be7 {[%clk 0:02:38.8]} 15. Re1 {[%clk
0:02:14.4]} 15... h6 {[%clk 0:02:38.2]} 16. Be3 {[%clk 0:02:02.7]} 16... Rd8
{[%clk 0:02:36.3]} 17. Qc2 {[%clk 0:01:55.6]} 17... Ng4 {[%clk 0:02:10.1]} 18.
Bf4 {[%clk 0:01:50.6]} 18... Bd6 {[%clk 0:02:07.4]} 19. Bxd6 {[%clk 0:01:49.3]}
19... Qxd6 {[%clk 0:02:03.8]} 20. Rad1 {[%clk 0:01:48.2]} 20... Nf6 {[%clk
0:02:01.9]} 21. d5 {[%clk 0:01:11]} 21... cxd5 {[%clk 0:01:55.5]} 22. cxd5
{[%clk 0:01:10.4]} 22... e5 {[%clk 0:01:56]} 23. Qe2 {[%clk 0:00:53.2]} 23...
Bg4 {[%clk 0:01:53.7]} 24. f3 {[%clk 0:00:50.8]} 24... Bd7 {[%clk 0:01:43.5]}
25. Qxe5 {[%clk 0:00:49.1]} 25... Qb6+ {[%clk 0:01:43.5]} 26. Qd4 {[%clk
0:00:41.1]} 26... Qxb2 {[%clk 0:01:43]} 27. Rb1 {[%clk 0:00:35.4]} 27... Qa3
{[%clk 0:01:39.1]} 28. Rxb7 {[%clk 0:00:34.5]} 28... Rac8 {[%clk 0:01:37.1]} 29.
Rb3 {[%clk 0:00:20.2]} 29... Qa5 {[%clk 0:01:35.1]} 30. Ne4 {[%clk 0:00:17.9]}
30... Qxe1+ {[%clk 0:01:34.6]} 31. Bf1 {[%clk 0:00:16.2]} 31... Nxe4 {[%clk
0:01:35.5]} 32. Qxe4 {[%clk 0:00:15.4]} 32... Qxe4 {[%clk 0:01:32.4]} 33. fxe4
{[%clk 0:00:16.3]} 33... Bb5 {[%clk 0:01:31.9]} 34. Bg2 {[%clk 0:00:14.8]} 34...
Rc1+ {[%clk 0:01:29.2]} 35. Kf2 {[%clk 0:00:14.7]} 35... Rc2+ {[%clk 0:01:30.1]}
36. Kf3 {[%clk 0:00:13.1]} 36... Be2+ {[%clk 0:01:28.4]} 0-1

[Event "*** SCC Grand Prix: Titled Tuesday Blitz"]
[Site "Chess.com"]
[Date "2020.08.11"]
[Round "2"]
[White "SilviusTiberius"]
[Black "BabyFacedAssasin"]
[Result "1-0"]
[WhiteElo "2508"]
[BlackElo "2266"]
[TimeControl "180+1"]
[EndTime "10:17:34 PDT"]
[Termination "SilviusTiberius won by resignation"]

1. e4 {[%clk 0:03:00.9]} 1... e6 {[%clk 0:02:57.8]} 2. d4 {[%clk 0:03:00.7]}
2... d5 {[%clk 0:02:57.4]} 3. Nc3 {[%clk 0:03:01.2]} 3... Nf6 {[%clk 0:02:56.7]}
4. e5 {[%clk 0:03:01.2]} 4... Nfd7 {[%clk 0:02:56.5]} 5. Nce2 {[%clk 0:03:02.1]}
5... c5 {[%clk 0:02:56.5]} 6. c3 {[%clk 0:03:02.1]} 6... Nc6 {[%clk 0:02:56.1]}
7. Nf3 {[%clk 0:03:02.3]} 7... b5 {[%clk 0:02:55.3]} 8. Nf4 {[%clk 0:03:00.8]}
8... Qb6 {[%clk 0:02:52.4]} 9. Be2 {[%clk 0:02:59.2]} 9... Be7 {[%clk
0:02:48.2]} 10. O-O {[%clk 0:02:57.7]} 10... a5 {[%clk 0:02:43.8]} 11. h4 {[%clk
0:02:54.5]} 11... b4 {[%clk 0:02:34.8]} 12. Re1 {[%clk 0:02:45.9]} 12... Ba6
{[%clk 0:02:32.1]} 13. Bxa6 {[%clk 0:02:25.8]} 13... Rxa6 {[%clk 0:02:30.1]} 14.
c4 {[%clk 0:02:24.2]} 14... cxd4 {[%clk 0:02:06.6]} 15. cxd5 {[%clk 0:02:23.2]}
15... exd5 {[%clk 0:02:05.1]} 16. e6 {[%clk 0:02:11.1]} 16... Nf6 {[%clk
0:01:48.9]} 17. exf7+ {[%clk 0:02:02.9]} 17... Kxf7 {[%clk 0:01:46.7]} 18. Ng5+
{[%clk 0:02:03.2]} 18... Ke8 {[%clk 0:01:45]} 19. Nfe6 {[%clk 0:01:47.7]} 19...
Rg8 {[%clk 0:01:32]} 20. Nxh7 {[%clk 0:01:39.7]} 20... Nxh7 {[%clk 0:01:27]} 21.
Qh5+ {[%clk 0:01:37.3]} 21... Kd7 {[%clk 0:01:26.7]} 22. Qxh7 {[%clk 0:01:36.7]}
22... Raa8 {[%clk 0:01:12.2]} 23. Qf5 {[%clk 0:01:32]} 23... Ke8 {[%clk
0:00:58.9]} 24. Bf4 {[%clk 0:01:25.5]} 24... Ra7 {[%clk 0:00:36]} 25. Qxd5
{[%clk 0:01:22.5]} 25... Rd7 {[%clk 0:00:25.7]} 26. Nc7+ {[%clk 0:01:13.5]}
26... Rxc7 {[%clk 0:00:16.5]} 27. Qxg8+ {[%clk 0:01:12.1]} 27... Kd7 {[%clk
0:00:16.4]} 28. Bxc7 {[%clk 0:01:06.2]} 28... Qxc7 {[%clk 0:00:16.2]} 29. Qe6+
{[%clk 0:00:57.9]} 29... Kd8 {[%clk 0:00:15.3]} 30. Rac1 {[%clk 0:00:58.5]} 1-0

[Event "*** SCC Grand Prix: Titled Tuesday Blitz"]
[Site "Chess.com"]
[Date "2020.08.11"]
[Round "2"]
[White "lilleper1"]
[Black "DariaVoit"]
[Result "1-0"]
[WhiteElo "2759"]
[BlackElo "2504"]
[TimeControl "180+1"]
[EndTime "10:17:36 PDT"]
[Termination "lilleper1 won by checkmate"]

1. e4 {[%clk 0:03:00.9]} 1... e6 {[%clk 0:00:13.7]} 2. d4 {[%clk 0:02:57.2]}
2... d5 {[%clk 0:00:13.9]} 3. Nd2 {[%clk 0:02:57.8]} 3... Nf6 {[%clk 0:00:13.5]}
4. e5 {[%clk 0:02:56.1]} 4... Nfd7 {[%clk 0:00:14]} 5. Bd3 {[%clk 0:02:56.7]}
5... c5 {[%clk 0:00:14.5]} 6. c3 {[%clk 0:02:57.4]} 6... Nc6 {[%clk 0:00:15.1]}
7. Ne2 {[%clk 0:02:57.9]} 7... cxd4 {[%clk 0:00:15.5]} 8. cxd4 {[%clk
0:02:58.8]} 8... f6 {[%clk 0:00:16.2]} 9. Nf4 {[%clk 0:02:58]} 9... Nxd4 {[%clk
0:00:15.2]} 10. Qh5+ {[%clk 0:02:49.2]} 10... Ke7 {[%clk 0:00:15.5]} 11. Ng6+
{[%clk 0:02:44.8]} 11... hxg6 {[%clk 0:00:16.4]} 12. exf6+ {[%clk 0:02:45.3]}
12... Nxf6 {[%clk 0:00:17.2]} 13. Qxh8 {[%clk 0:02:45.6]} 13... Kf7 {[%clk
0:00:15.5]} 14. O-O {[%clk 0:02:45]} 14... e5 {[%clk 0:00:15.5]} 15. Nb3 {[%clk
0:02:45.5]} 15... Nxb3 {[%clk 0:00:14.7]} 16. axb3 {[%clk 0:02:46.4]} 16... Bf5
{[%clk 0:00:15.2]} 17. Bxf5 {[%clk 0:02:44.5]} 17... gxf5 {[%clk 0:00:16.1]} 18.
Bg5 {[%clk 0:02:42.4]} 18... g6 {[%clk 0:00:16.3]} 19. Qh3 {[%clk 0:02:40.5]}
19... Bg7 {[%clk 0:00:16.1]} 20. Rfc1 {[%clk 0:02:35.1]} 20... a6 {[%clk
0:00:15.1]} 21. b4 {[%clk 0:02:31.8]} 21... Qd7 {[%clk 0:00:14.9]} 22. b5 {[%clk
0:02:23.4]} 22... Ne4 {[%clk 0:00:12.9]} 23. Be3 {[%clk 0:01:33.2]} 23... Qxb5
{[%clk 0:00:12.4]} 24. Rc7+ {[%clk 0:01:24.2]} 24... Kg8 {[%clk 0:00:12.5]} 25.
Bh6 {[%clk 0:01:19.7]} 25... Bf6 {[%clk 0:00:12.6]} 26. Bf4 {[%clk 0:01:07.3]}
26... Bg7 {[%clk 0:00:10.7]} 27. Bxe5 {[%clk 0:01:06]} 27... Ng5 {[%clk
0:00:06.3]} 28. Rxg7+ {[%clk 0:01:05.1]} 28... Kf8 {[%clk 0:00:06.7]} 29. Qh8#
{[%clk 0:01:05.1]} 1-0

[Event "*** SCC Grand Prix: Titled Tuesday Blitz"]
[Site "Chess.com"]
[Date "2020.08.11"]
[Round "2"]
[White "ethylalcohol"]
[Black "killer311"]
[Result "0-1"]
[WhiteElo "2207"]
[BlackElo "2431"]
[TimeControl "180+1"]
[EndTime "10:17:41 PDT"]
[Termination "killer311 won on time"]

1. d4 {[%clk 0:03:00.9]} 1... d5 {[%clk 0:02:59.6]} 2. Bf4 {[%clk 0:03:00.8]}
2... Nf6 {[%clk 0:02:59.4]} 3. Nf3 {[%clk 0:03:00.8]} 3... c5 {[%clk 0:03:00]}
4. e3 {[%clk 0:03:00.4]} 4... e6 {[%clk 0:03:00.6]} 5. c3 {[%clk 0:02:59.1]}
5... Nc6 {[%clk 0:03:01.1]} 6. Nbd2 {[%clk 0:02:59.1]} 6... cxd4 {[%clk
0:03:01.7]} 7. exd4 {[%clk 0:02:59.2]} 7... Nh5 {[%clk 0:03:02.2]} 8. Bg5 {[%clk
0:02:56.1]} 8... f6 {[%clk 0:03:02.1]} 9. Bh4 {[%clk 0:02:52.5]} 9... Bd6 {[%clk
0:03:00]} 10. Ne5 {[%clk 0:01:53.5]} 10... g6 {[%clk 0:02:55.4]} 11. Nxc6 {[%clk
0:01:50.9]} 11... bxc6 {[%clk 0:02:56.3]} 12. Qf3 {[%clk 0:01:35.9]} 12... O-O
{[%clk 0:02:52.9]} 13. Bd3 {[%clk 0:01:21.8]} 13... Nf4 {[%clk 0:02:51.1]} 14.
Bc2 {[%clk 0:01:19.6]} 14... Ba6 {[%clk 0:02:46.2]} 15. Bg3 {[%clk 0:01:12.7]}
15... Be2 {[%clk 0:02:30.9]} 16. Bxf4 {[%clk 0:00:47.5]} 16... Bxf3 {[%clk
0:02:29.9]} 17. Bxd6 {[%clk 0:00:47.8]} 17... Qxd6 {[%clk 0:02:29.5]} 18. Nxf3
{[%clk 0:00:48.2]} 18... e5 {[%clk 0:02:27.1]} 19. dxe5 {[%clk 0:00:46.6]} 19...
fxe5 {[%clk 0:02:28]} 20. O-O-O {[%clk 0:00:47]} 20... e4 {[%clk 0:02:21.7]} 21.
Nd4 {[%clk 0:00:42.1]} 21... Rxf2 {[%clk 0:02:16.9]} 22. Kb1 {[%clk 0:00:41.5]}
22... Rb8 {[%clk 0:02:11.6]} 23. Bb3 {[%clk 0:00:38.6]} 23... Kh8 {[%clk
0:02:04.6]} 24. h3 {[%clk 0:00:34.1]} 24... a5 {[%clk 0:02:00]} 25. Rhf1 {[%clk
0:00:27.9]} 25... Rxf1 {[%clk 0:01:52.4]} 26. Rxf1 {[%clk 0:00:27.7]} 26... c5
{[%clk 0:01:50.3]} 27. Ne2 {[%clk 0:00:15.2]} 27... Qe5 {[%clk 0:01:47.8]} 28.
Rf7 {[%clk 0:00:12.5]} 28... Rd8 {[%clk 0:01:36.1]} 29. h4 {[%clk 0:00:06.2]}
29... d4 {[%clk 0:01:34.9]} 30. cxd4 {[%clk 0:00:05.6]} 30... cxd4 {[%clk
0:01:35.8]} 31. h5 {[%clk 0:00:05.1]} 31... gxh5 {[%clk 0:01:34.3]} 32. Nf4
{[%clk 0:00:03.5]} 32... d3 {[%clk 0:01:30.8]} 33. Ne6 {[%clk 0:00:01.9]} 33...
Rc8 {[%clk 0:01:24.9]} 0-1

[Event "*** SCC Grand Prix: Titled Tuesday Blitz"]
[Site "Chess.com"]
[Date "2020.08.11"]
[Round "2"]
[White "shnitez"]
[Black "econpower"]
[Result "0-1"]
[WhiteElo "2476"]
[BlackElo "2718"]
[TimeControl "180+1"]
[EndTime "10:17:45 PDT"]
[Termination "econpower won by resignation"]

1. c4 {[%clk 0:03:00.9]} 1... g6 {[%clk 0:02:57.7]} 2. Nc3 {[%clk 0:02:54.4]}
2... Bg7 {[%clk 0:02:57.9]} 3. d4 {[%clk 0:02:53.3]} 3... d6 {[%clk 0:02:57.9]}
4. e4 {[%clk 0:02:52.9]} 4... Nd7 {[%clk 0:02:56.2]} 5. Nf3 {[%clk 0:02:51.4]}
5... e5 {[%clk 0:02:56.3]} 6. Be2 {[%clk 0:02:50.2]} 6... Ne7 {[%clk 0:02:56.3]}
7. O-O {[%clk 0:02:41.3]} 7... O-O {[%clk 0:02:55.6]} 8. Be3 {[%clk 0:02:21.3]}
8... c5 {[%clk 0:02:55]} 9. dxc5 {[%clk 0:02:14.1]} 9... dxc5 {[%clk 0:02:55.1]}
10. Qd6 {[%clk 0:02:06.4]} 10... Qb6 {[%clk 0:02:54.9]} 11. Qxb6 {[%clk
0:01:39.3]} 11... axb6 {[%clk 0:02:54]} 12. Rfd1 {[%clk 0:01:37.5]} 12... Nc6
{[%clk 0:02:51]} 13. Nd5 {[%clk 0:01:31.1]} 13... f6 {[%clk 0:02:41.2]} 14. Nd2
{[%clk 0:01:06.1]} 14... f5 {[%clk 0:02:35.4]} 15. f3 {[%clk 0:01:02]} 15... Bf6
{[%clk 0:02:09.5]} 16. Bd3 {[%clk 0:00:52]} 16... Bd8 {[%clk 0:02:07.6]} 17. Nb1
{[%clk 0:00:48.2]} 17... Nd4 {[%clk 0:02:04.6]} 18. Nbc3 {[%clk 0:00:43]} 18...
Nb8 {[%clk 0:01:42.4]} 19. Bxd4 {[%clk 0:00:31.2]} 19... exd4 {[%clk 0:01:43.3]}
20. Nb5 {[%clk 0:00:29.3]} 20... Nc6 {[%clk 0:01:43.9]} 21. Re1 {[%clk
0:00:21.2]} 21... Ne5 {[%clk 0:01:40.9]} 22. Rad1 {[%clk 0:00:19]} 22... f4
{[%clk 0:01:39.5]} 23. a3 {[%clk 0:00:18]} 23... g5 {[%clk 0:01:36.7]} 24. b4
{[%clk 0:00:16]} 24... h5 {[%clk 0:01:33.4]} 25. h3 {[%clk 0:00:11.1]} 25... g4
{[%clk 0:01:25.3]} 26. hxg4 {[%clk 0:00:10.1]} 26... hxg4 {[%clk 0:01:26.2]} 27.
Be2 {[%clk 0:00:07.2]} 27... Kg7 {[%clk 0:01:08.8]} 28. bxc5 {[%clk 0:00:06.7]}
28... bxc5 {[%clk 0:01:08.5]} 29. Rf1 {[%clk 0:00:04.8]} 29... g3 {[%clk
0:01:06]} 30. Rb1 {[%clk 0:00:02.9]} 30... Ra6 {[%clk 0:01:06.2]} 31. Rfc1
{[%clk 0:00:02.9]} 31... Rh6 {[%clk 0:01:05.9]} 32. Kf1 {[%clk 0:00:01.1]} 0-1